[Event "TePe Sigeman & Co Chess Tournament 2024"]
[Site "Elite Plaza Hotel, Gustav Adolfs Torg 49, Malmo, Sweden"]
[Date "2024.04.30"]
[Round "4.2"]
[White "Keymer, Vincent"]
[Black "Ju, Wenjun"]
[Result "0-1"]
[TimeControl "90 minutes for 40 moves + 30 minutes for the rest of the game + 30 seconds per move from move one."]
[WhiteTitle "GM"]
[BlackTitle "GM"]
[WhiteFideId "12940690"]
[BlackFideId "8603006"]
[WhiteElo "2726"]
[BlackElo "2559"]

1. c4 {[%clk 01:30:57]} {[%emt 00:00:03]} e6 {[%clk 01:30:51]} {[%emt
00:00:10]} 2. Nc3 {[%clk 01:31:22]} {[%emt 00:00:05]} d5 {[%clk 01:31:13]}
{[%emt 00:00:08]} 3. d4 {[%clk 01:31:47]} {[%emt 00:00:05]} Nf6 {[%clk
01:31:35]} {[%emt 00:00:08]} 4. cxd5 {[%clk 01:32:13]} {[%emt 00:00:05]} exd5
{[%clk 01:32:01]} {[%emt 00:00:04]} 5. Bg5 {[%clk 01:32:37]} {[%emt 00:00:05]}
c6 {[%clk 01:32:01]} {[%emt 00:00:30]} 6. e3 {[%clk 01:33:01]} {[%emt
00:00:06]} Bf5 {[%clk 01:32:11]} {[%emt 00:00:21]} 7. Nge2 {[%clk 01:33:26]}
{[%emt 00:00:06]} Be7 {[%clk 01:25:37]} {[%emt 00:07:03]} 8. Ng3 {[%clk
01:31:54]} {[%emt 00:02:01]} Be6 {[%clk 01:25:40]} {[%emt 00:00:27]} 9. Bd3
{[%clk 01:30:27]} {[%emt 00:01:58]} h6 {[%clk 01:19:23]} {[%emt 00:06:48]} 10.
Bf4 {[%clk 01:30:08]} {[%emt 00:00:48]} O-O {[%clk 01:18:34]} {[%emt 00:01:19]}
11. Nf5 {[%clk 01:19:32]} {[%emt 00:11:06]} Bxf5 {[%clk 01:10:35]} {[%emt
00:08:29]} 12. Bxf5 {[%clk 01:19:51]} {[%emt 00:00:11]} Bd6 {[%clk 01:11:02]}
{[%emt 00:00:04]} 13. Bg3 {[%clk 01:10:58]} {[%emt 00:09:22]} Ne8 {[%clk
01:00:23]} {[%emt 00:11:09]} 14. Qc2 {[%clk 01:04:04]} {[%emt 00:07:25]} Nd7
{[%clk 00:59:49]} {[%emt 00:01:04]} 15. O-O-O {[%clk 01:03:21]} {[%emt
00:01:13]} Nb6 {[%clk 00:57:57]} {[%emt 00:02:21]} 16. Bh7+ {[%clk 00:56:26]}
{[%emt 00:07:25]} Kh8 {[%clk 00:58:23]} {[%emt 00:00:04]} 17. Bd3 {[%clk
00:56:52]} {[%emt 00:00:04]} a5 {[%clk 00:58:13]} {[%emt 00:00:41]} 18. Kb1
{[%clk 00:55:33]} {[%emt 00:01:49]} a4 {[%clk 00:58:22]} {[%emt 00:00:21]} 19.
a3 {[%clk 00:55:44]} {[%emt 00:00:19]} Qe7 {[%clk 00:47:44]} {[%emt 00:11:07]}
20. Rde1 {[%clk 00:40:50]} {[%emt 00:15:25]} Qf6 {[%clk 00:39:34]} {[%emt
00:08:40]} 21. f3 {[%clk 00:39:36]} {[%emt 00:01:45]} Nc7 {[%clk 00:31:58]}
{[%emt 00:08:06]} 22. Qf2 {[%clk 00:37:56]} {[%emt 00:02:09]} Qd8 {[%clk
00:26:18]} {[%emt 00:06:10]} 23. e4 {[%clk 00:32:00]} {[%emt 00:06:26]} dxe4
{[%clk 00:25:59]} {[%emt 00:00:49]} 24. Nxe4 {[%clk 00:30:22]} {[%emt
00:02:08]} Be7 {[%clk 00:25:56]} {[%emt 00:00:32]} 25. Be5 {[%clk 00:27:57]}
{[%emt 00:02:55]} Ne6 {[%clk 00:25:42]} {[%emt 00:00:44]} 26. Qe3 {[%clk
00:23:19]} {[%emt 00:05:08]} f6 {[%clk 00:24:43]} {[%emt 00:01:29]} 27. Nc5
{[%clk 00:16:55]} {[%emt 00:06:53]} Bxc5 {[%clk 00:23:38]} {[%emt 00:01:36]} 28.
dxc5 {[%clk 00:15:47]} {[%emt 00:01:39]} Nd5 {[%clk 00:23:26]} {[%emt
00:00:41]} 29. Qe4 {[%clk 00:12:57]} {[%emt 00:03:20]} Ng5 {[%clk 00:23:47]}
{[%emt 00:00:09]} 30. Qc4 {[%clk 00:11:59]} {[%emt 00:01:27]} fxe5 {[%clk
00:24:08]} {[%emt 00:00:09]} 31. Rxe5 {[%clk 00:12:19]} {[%emt 00:00:10]} Re8
{[%clk 00:13:08]} {[%emt 00:11:30]} 32. Rhe1 {[%clk 00:11:26]} {[%emt
00:01:23]} Rxe5 {[%clk 00:06:46]} {[%emt 00:06:52]} 33. Rxe5 {[%clk 00:11:55]}
{[%emt 00:00:01]} b5 {[%clk 00:07:05]} {[%emt 00:00:10]} 34. cxb6 {[%clk
00:11:37]} {[%emt 00:00:48]} Qxb6 {[%clk 00:05:48]} {[%emt 00:01:47]} 35. Re2
{[%clk 00:08:05]} {[%emt 00:04:01]} Rb8 {[%clk 00:04:50]} {[%emt 00:01:28]} 36.
Ka1 {[%clk 00:05:09]} {[%emt 00:03:27]} Qb3 {[%clk 00:03:34]} {[%emt 00:01:46]}
37. Qxb3 {[%clk 00:05:35]} {[%emt 00:00:04]} axb3 {[%clk 00:04:02]} {[%emt
00:00:02]} 38. Bc4 {[%clk 00:06:04]} Nf7 {[%clk 00:02:50]} {[%emt 00:01:42]} 39.
Re6 {[%clk 00:05:21]} {[%emt 00:01:13]} g5 {[%clk 00:01:44]} {[%emt 00:01:36]}
40. g3 {[%clk 00:02:04]} {[%emt 00:03:48]} Kg7 {[%clk 00:01:33]} {[%emt
00:00:41]} 41. Kb1 {[%clk 00:01:52]} {[%emt 00:00:42]} Rb7 {[%clk 00:18:05]}
{[%emt 00:13:57]} 42. Kc1 {[%clk 00:27:24]} {[%emt 00:04:59]} h5 {[%clk
00:16:34]} {[%emt 00:02:01]} 43. Kd2 {[%clk 00:26:19]} {[%emt 00:01:34]} Rd7
{[%clk 00:14:20]} {[%emt 00:02:44]} 44. Kc1 {[%clk 00:26:24]} {[%emt 00:00:25]}
Rb7 {[%clk 00:12:51]} {[%emt 00:01:59]} 45. Kd2 {[%clk 00:26:50]} {[%emt
00:00:05]} h4 {[%clk 00:12:09]} {[%emt 00:01:12]} 46. Rxc6 {[%clk 00:25:33]}
{[%emt 00:01:47]} Ne5 {[%clk 00:12:23]} {[%emt 00:00:16]} 47. Rc5 {[%clk
00:12:29]} {[%emt 00:13:34]} Nxc4+ {[%clk 00:12:45]} {[%emt 00:00:07]} 48. Rxc4
{[%clk 00:12:58]} {[%emt 00:00:01]} h3 {[%clk 00:09:50]} {[%emt 00:03:25]} 49.
Kd3 {[%clk 00:08:52]} {[%emt 00:04:35]} Rd7 {[%clk 00:08:46]} {[%emt 00:01:34]}
50. Rd4 {[%clk 00:07:26]} {[%emt 00:01:57]} Kf6 {[%clk 00:08:12]} {[%emt
00:01:03]} 51. a4 {[%clk 00:06:59]} {[%emt 00:00:57]} Ke5 {[%clk 00:08:09]}
{[%emt 00:00:33]} 52. Re4+ {[%clk 00:07:25]} {[%emt 00:00:04]} Kd6 {[%clk
00:07:44]} {[%emt 00:00:55]} 53. Kc4 {[%clk 00:05:50]} {[%emt 00:02:05]} Rb7
{[%clk 00:05:38]} {[%emt 00:02:36]} 54. a5 {[%clk 00:06:19]} {[%emt 00:00:01]}
Rb4+ {[%clk 00:03:25]} {[%emt 00:02:42]} 55. Kd3 {[%clk 00:06:48]} {[%emt
00:00:01]} Kc5 {[%clk 00:03:46]} {[%emt 00:00:09]} 56. Rxb4 {[%clk 00:02:43]}
{[%emt 00:04:35]} Nxb4+ {[%clk 00:04:13]} {[%emt 00:00:03]} 57. Ke4 {[%clk
00:02:01]} {[%emt 00:01:12]} Kb5 {[%clk 00:04:25]} {[%emt 00:00:18]} 58. f4
{[%clk 00:02:15]} {[%emt 00:00:16]} gxf4 {[%clk 00:04:51]} {[%emt 00:00:03]} 59.
gxf4 {[%clk 00:02:22]} {[%emt 00:00:22]} Kxa5 {[%clk 00:05:01]} {[%emt
00:00:20]} 60. f5 {[%clk 00:02:43]} {[%emt 00:00:10]} Nc6 {[%clk 00:05:10]}
{[%emt 00:00:20]} 61. Kd5 {[%clk 00:00:59]} {[%emt 00:02:14]} Nd8 {[%clk
00:04:48]} {[%emt 00:00:52]} 62. Kc4 {[%clk 00:01:11]} {[%emt 00:00:18]} Ka4
{[%clk 00:05:14]} {[%emt 00:00:03]} 63. f6 {[%clk 00:01:30]} {[%emt 00:00:10]}
Nf7 {[%clk 00:05:39]} {[%emt 00:00:05]} 64. Kc5 {[%clk 00:01:47]} {[%emt
00:00:14]} Nh6 {[%clk 00:04:02]} {[%emt 00:02:07]} 65. Kd5 {[%clk 00:00:38]}
{[%emt 00:01:38]} Kb5 {[%clk 00:04:26]} {[%emt 00:00:05]} 66. Ke5 {[%clk
00:00:33]} {[%emt 00:00:35]} Kc4 {[%clk 00:03:26]} {[%emt 00:01:30]} 67. Ke4
{[%clk 00:00:46]} {[%emt 00:00:18]} Nf7 {[%clk 00:03:34]} {[%emt 00:00:22]} 68.
Kf5 {[%clk 00:00:52]} {[%emt 00:00:24]} Kd3 {[%clk 00:03:53]} {[%emt 00:00:10]}
69. Kg6 {[%clk 00:00:37]} {[%emt 00:00:45]} Nd6 {[%clk 00:04:18]} {[%emt
00:00:04]} 0-1

[ePGN "0.1;DGT LiveChess/2.2.6"]

[Event "TePe Sigeman & Co Chess Tournament 2024"]
[Site "Elite Plaza Hotel, Gustav Adolfs Torg 49, Malmo, Sweden"]
[Date "2024.04.30"]
[Round "4.3"]
[White "Korobov, Anton"]
[Black "Erigaisi, Arjun"]
[Result "1/2-1/2"]
[TimeControl "90 minutes for 40 moves + 30 minutes for the rest of the game + 30 seconds per move from move one."]
[WhiteTitle "GM"]
[BlackTitle "GM"]
[WhiteFideId "14105730"]
[BlackFideId "35009192"]
[WhiteElo "2651"]
[BlackElo "2756"]

1. c4 {[%clk 01:30:55]} {[%emt 00:00:03]} c6 {[%clk 01:30:54]} {[%emt
00:00:07]} 2. Nf3 {[%clk 01:30:45]} {[%emt 00:00:39]} d5 {[%clk 01:31:18]}
{[%emt 00:00:07]} 3. e3 {[%clk 01:31:08]} {[%emt 00:00:07]} Nf6 {[%clk
01:31:42]} {[%emt 00:00:06]} 4. Nc3 {[%clk 01:31:32]} {[%emt 00:00:06]} e6
{[%clk 01:32:07]} {[%emt 00:00:06]} 5. b3 {[%clk 01:31:34]} {[%emt 00:00:27]}
Bd6 {[%clk 01:32:07]} {[%emt 00:00:30]} 6. Bb2 {[%clk 01:31:24]} {[%emt
00:00:40]} O-O {[%clk 01:31:31]} {[%emt 00:01:06]} 7. d4 {[%clk 01:31:42]}
{[%emt 00:00:12]} Nbd7 {[%clk 01:30:59]} {[%emt 00:01:02]} 8. Bd3 {[%clk
01:31:54]} {[%emt 00:00:17]} Re8 {[%clk 01:28:44]} {[%emt 00:02:46]} 9. Qc2
{[%clk 01:21:03]} {[%emt 00:11:21]} e5 {[%clk 01:26:48]} {[%emt 00:02:26]} 10.
cxd5 {[%clk 01:20:40]} {[%emt 00:00:54]} cxd5 {[%clk 01:27:12]} {[%emt
00:00:06]} 11. dxe5 {[%clk 01:16:26]} {[%emt 00:04:43]} Nxe5 {[%clk 01:27:22]}
{[%emt 00:00:21]} 12. Nxe5 {[%clk 01:15:21]} {[%emt 00:01:34]} Bxe5 {[%clk
01:27:35]} {[%emt 00:00:17]} 13. Ne2 {[%clk 01:15:14]} {[%emt 00:00:37]} d4
{[%clk 01:08:52]} {[%emt 00:19:13]} 14. e4 {[%clk 01:07:25]} {[%emt 00:08:19]}
Qd6 {[%clk 00:45:30]} {[%emt 00:23:52]} 15. Qd2 {[%clk 01:02:52]} {[%emt
00:05:02]} Bxh2 {[%clk 00:42:32]} {[%emt 00:03:29]} 16. f3 {[%clk 01:01:46]}
{[%emt 00:01:36]} Nh5 {[%clk 00:38:03]} {[%emt 00:04:59]} 17. O-O-O {[%clk
00:47:44]} {[%emt 00:14:32]} Ng3 {[%clk 00:33:13]} {[%emt 00:05:21]} 18. Nxg3
{[%clk 00:47:22]} {[%emt 00:00:51]} Bxg3 {[%clk 00:33:39]} {[%emt 00:00:05]} 19.
Kb1 {[%clk 00:41:19]} {[%emt 00:06:32]} h6 {[%clk 00:34:05]} {[%emt 00:00:06]}
20. Bc4 {[%clk 00:40:12]} {[%emt 00:01:35]} Be6 {[%clk 00:31:50]} {[%emt
00:02:45]} 21. Bxe6 {[%clk 00:39:01]} {[%emt 00:01:41]} Rxe6 {[%clk 00:32:16]}
{[%emt 00:00:05]} 22. Qxd4 {[%clk 00:37:59]} {[%emt 00:01:32]} Qxd4 {[%clk
00:32:41]} {[%emt 00:00:05]} 23. Rxd4 {[%clk 00:35:39]} {[%emt 00:02:49]} Be5
{[%clk 00:32:55]} {[%emt 00:00:16]} 24. Rd2 {[%clk 00:35:26]} {[%emt 00:00:44]}
Bxb2 {[%clk 00:32:21]} {[%emt 00:01:04]} 25. Kxb2 {[%clk 00:35:53]} {[%emt
00:00:02]} Kf8 {[%clk 00:27:54]} {[%emt 00:04:57]} 26. Rc1 {[%clk 00:34:24]}
{[%emt 00:01:58]} Ke8 {[%clk 00:27:49]} {[%emt 00:00:37]} 27. Rc7 {[%clk
00:31:32]} {[%emt 00:03:22]} Re7 {[%clk 00:28:07]} {[%emt 00:00:12]} 28. Rc5
{[%clk 00:31:27]} {[%emt 00:00:34]} Rd8 {[%clk 00:25:41]} {[%emt 00:02:57]} 29.
Kc3 {[%clk 00:31:25]} {[%emt 00:00:32]} b6 {[%clk 00:23:20]} {[%emt 00:02:51]}
30. Rc4 {[%clk 00:30:38]} {[%emt 00:01:16]} Red7 {[%clk 00:20:16]} {[%emt
00:03:35]} 31. Rxd7 {[%clk 00:30:56]} {[%emt 00:00:12]} Rxd7 {[%clk 00:20:41]}
{[%emt 00:00:05]} 32. Rc8+ {[%clk 00:29:23]} {[%emt 00:02:03]} Ke7 {[%clk
00:21:06]} {[%emt 00:00:05]} 33. a4 {[%clk 00:29:24]} {[%emt 00:00:29]} h5
{[%clk 00:20:36]} {[%emt 00:01:00]} 34. b4 {[%clk 00:28:32]} {[%emt 00:01:22]}
g5 {[%clk 00:17:10]} {[%emt 00:03:56]} 35. Rh8 {[%clk 00:21:36]} {[%emt
00:07:25]} h4 {[%clk 00:17:27]} {[%emt 00:00:13]} 36. f4 {[%clk 00:21:54]}
{[%emt 00:00:12]} Rc7+ {[%clk 00:13:58]} {[%emt 00:04:00]} 37. Kb3 {[%clk
00:21:03]} {[%emt 00:01:20]} gxf4 {[%clk 00:11:11]} {[%emt 00:03:17]} 38. Rxh4
{[%clk 00:19:58]} {[%emt 00:01:35]} Ke6 {[%clk 00:11:36]} {[%emt 00:00:05]} 39.
Rxf4 {[%clk 00:20:05]} {[%emt 00:00:23]} Ke5 {[%clk 00:12:02]} {[%emt
00:00:04]} 40. g3 {[%clk 00:19:21]} {[%emt 00:01:14]} Kd4 {[%clk 00:11:33]}
{[%emt 00:00:59]} 41. b5 {[%clk 00:17:07]} {[%emt 00:02:44]} Rc3+ {[%clk
00:10:45]} {[%emt 00:01:18]} 42. Kb4 {[%clk 00:17:29]} {[%emt 00:00:08]} Rc4+
{[%clk 00:11:11]} {[%emt 00:00:05]} 43. Kb3 {[%clk 00:17:56]} {[%emt 00:00:03]}
Rc3+ {[%clk 00:11:36]} {[%emt 00:00:04]} 44. Kb4 {[%clk 00:18:21]} {[%emt
00:00:04]} Rc4+ {[%clk 00:12:03]} {[%emt 00:00:04]} 1/2-1/2

[ePGN "0.1;DGT LiveChess/2.2.6"]

[Event "TePe Sigeman & Co Chess Tournament 2024"]
[Site "Elite Plaza Hotel, Gustav Adolfs Torg 49, Malmo, Sweden"]
[Date "2024.04.30"]
[Round "4.4"]
[White "Maurizzi, Marc'Andria"]
[Black "Svidler, Peter"]
[Result "1/2-1/2"]
[TimeControl "90 minutes for 40 moves + 30 minutes for the rest of the game + 30 seconds per move from move one."]
[WhiteTitle "GM"]
[BlackTitle "GM"]
[WhiteFideId "36083534"]
[BlackFideId "4102142"]
[WhiteElo "2605"]
[BlackElo "2689"]

1. e4 {[%clk 01:30:58]} {[%emt 00:00:01]} e5 {[%clk 01:30:22]} {[%emt
00:00:38]} 2. Nf3 {[%clk 01:31:16]} {[%emt 00:00:12]} Nc6 {[%clk 01:30:50]}
{[%emt 00:00:02]} 3. Bb5 {[%clk 01:31:43]} {[%emt 00:00:04]} a6 {[%clk
01:30:39]} {[%emt 00:00:40]} 4. Ba4 {[%clk 01:32:00]} {[%emt 00:00:13]} Nf6
{[%clk 01:29:44]} {[%emt 00:01:25]} 5. O-O {[%clk 01:32:16]} {[%emt 00:00:14]}
Be7 {[%clk 01:26:43]} {[%emt 00:03:32]} 6. Re1 {[%clk 01:32:42]} {[%emt
00:00:04]} b5 {[%clk 01:26:45]} {[%emt 00:00:27]} 7. Bb3 {[%clk 01:33:11]}
{[%emt 00:00:02]} O-O {[%clk 01:27:05]} {[%emt 00:00:08]} 8. a4 {[%clk
01:33:26]} {[%emt 00:00:17]} b4 {[%clk 01:25:28]} {[%emt 00:02:07]} 9. d4
{[%clk 01:33:53]} {[%emt 00:00:03]} d6 {[%clk 01:25:49]} {[%emt 00:00:08]} 10.
dxe5 {[%clk 01:34:20]} {[%emt 00:00:03]} dxe5 {[%clk 01:25:51]} {[%emt
00:00:28]} 11. Bg5 {[%clk 01:34:47]} {[%emt 00:00:03]} Qxd1 {[%clk 01:08:12]}
{[%emt 00:18:09]} 12. Rxd1 {[%clk 01:35:16]} {[%emt 00:00:02]} Nxe4 {[%clk
01:08:16]} {[%emt 00:00:26]} 13. Bxe7 {[%clk 01:32:19]} {[%emt 00:03:26]} Nxe7
{[%clk 01:08:23]} {[%emt 00:00:24]} 14. Nxe5 {[%clk 01:32:31]} {[%emt
00:00:18]} Nc5 {[%clk 01:08:10]} {[%emt 00:00:43]} 15. Nd2 {[%clk 01:32:50]}
{[%emt 00:00:11]} Bf5 {[%clk 01:05:59]} {[%emt 00:02:40]} 16. Bc4 {[%clk
01:27:54]} {[%emt 00:05:27]} Bxc2 {[%clk 00:58:39]} {[%emt 00:07:50]} 17. Rdc1
{[%clk 01:28:09]} {[%emt 00:00:14]} b3 {[%clk 00:58:58]} {[%emt 00:00:12]} 18.
Ra3 {[%clk 01:19:55]} {[%emt 00:08:44]} Rab8 {[%clk 00:51:32]} {[%emt
00:07:56]} 19. h3 {[%clk 01:10:03]} {[%emt 00:10:23]} h6 {[%clk 00:31:22]}
{[%emt 00:20:40]} 20. Ndf3 {[%clk 00:49:37]} {[%emt 00:20:56]} Rb4 {[%clk
00:26:55]} {[%emt 00:04:57]} 21. Bxb3 {[%clk 00:37:57]} {[%emt 00:12:10]} Bxb3
{[%clk 00:25:30]} {[%emt 00:01:54]} 22. Rxc5 {[%clk 00:38:21]} {[%emt
00:00:07]} Bxa4 {[%clk 00:25:39]} {[%emt 00:00:22]} 23. Nd3 {[%clk 00:34:53]}
{[%emt 00:03:58]} Re4 {[%clk 00:25:10]} {[%emt 00:00:58]} 24. Rxc7 {[%clk
00:34:09]} {[%emt 00:01:14]} Nd5 {[%clk 00:23:28]} {[%emt 00:02:12]} 25. Rc5
{[%clk 00:28:59]} {[%emt 00:05:40]} Rd8 {[%clk 00:21:47]} {[%emt 00:02:11]} 26.
Nd2 {[%clk 00:29:12]} {[%emt 00:00:17]} Rd4 {[%clk 00:22:13]} {[%emt 00:00:04]}
27. Nf3 {[%clk 00:29:36]} {[%emt 00:00:06]} Re4 {[%clk 00:22:41]} {[%emt
00:00:03]} 28. Nd2 {[%clk 00:30:00]} {[%emt 00:00:05]} Rd4 {[%clk 00:23:09]}
{[%emt 00:00:01]} 29. Nf3 {[%clk 00:30:25]} {[%emt 00:00:06]} 1/2-1/2